[Event "*** Qualifier 1: Titled Tuesday 3|2 Blitz"]
[Site "Chess.com"]
[Date "2017.04.04"]
[Round "4"]
[White "GianmarcoVaR"]
[Black "HansCoolNiemann"]
[Result "0-1"]
[WhiteElo "2405"]
[BlackElo "2315"]
[TimeControl "180+2"]
[EndTime "13:51:45 PDT"]
[Termination "HansCoolNiemann won on time"]

1. d4 {[%clk 0:03:00]} 1... Nf6 {[%clk 0:02:54.6]} 2. Nf3 {[%clk 0:02:52.6]}
2... g6 {[%clk 0:02:51]} 3. Bg5 {[%clk 0:02:53.6]} 3... Bg7 {[%clk 0:02:46.8]}
4. Nbd2 {[%clk 0:02:54.9]} 4... d5 {[%clk 0:02:42.6]} 5. e3 {[%clk 0:02:54.5]}
5... O-O {[%clk 0:02:34.4]} 6. Be2 {[%clk 0:02:54.6]} 6... h6 {[%clk 0:02:29.1]}
7. Bh4 {[%clk 0:02:54.6]} 7... c5 {[%clk 0:02:26.4]} 8. c3 {[%clk 0:02:54.9]}
8... b6 {[%clk 0:02:25.4]} 9. a4 {[%clk 0:02:50.5]} 9... Nc6 {[%clk 0:02:21]}
10. O-O {[%clk 0:02:35]} 10... g5 {[%clk 0:02:15.8]} 11. Bg3 {[%clk 0:02:35.4]}
11... Nh5 {[%clk 0:02:17.3]} 12. Bb5 {[%clk 0:02:16]} 12... Bb7 {[%clk
0:02:13.1]} 13. Bxc6 {[%clk 0:02:15.6]} 13... Bxc6 {[%clk 0:02:13.7]} 14. Ne5
{[%clk 0:02:16.4]} 14... Bxe5 {[%clk 0:02:06.6]} 15. Bxe5 {[%clk 0:02:10.6]}
15... Ng7 {[%clk 0:02:07.3]} 16. b4 {[%clk 0:02:05.4]} 16... f6 {[%clk
0:02:04.7]} 17. Bg3 {[%clk 0:02:05.6]} 17... cxb4 {[%clk 0:02:02.2]} 18. cxb4
{[%clk 0:02:06.4]} 18... Be8 {[%clk 0:02:00.8]} 19. Qb3 {[%clk 0:01:49]} 19...
Rc8 {[%clk 0:01:58.1]} 20. Rfc1 {[%clk 0:01:49.5]} 20... Bf7 {[%clk 0:01:53.2]}
21. b5 {[%clk 0:01:45.2]} 21... Qd7 {[%clk 0:01:50.6]} 22. Qb2 {[%clk
0:01:24.1]} 22... h5 {[%clk 0:01:48.4]} 23. h3 {[%clk 0:01:18.3]} 23... h4
{[%clk 0:01:46.8]} 24. Bh2 {[%clk 0:01:19]} 24... Bg6 {[%clk 0:01:45.3]} 25.
Rxc8 {[%clk 0:01:16.7]} 25... Rxc8 {[%clk 0:01:44.5]} 26. Rc1 {[%clk 0:01:17.7]}
26... Kf7 {[%clk 0:01:38.8]} 27. Rc3 {[%clk 0:01:14.4]} 27... a6 {[%clk
0:01:29.7]} 28. Rxc8 {[%clk 0:00:33]} 28... Qxc8 {[%clk 0:01:31.6]} 29. f3
{[%clk 0:00:33.1]} 29... axb5 {[%clk 0:01:24.2]} 30. axb5 {[%clk 0:00:32.2]}
30... Ne6 {[%clk 0:01:20.2]} 31. Kf2 {[%clk 0:00:26.9]} 31... Bd3 {[%clk
0:01:13.3]} 32. Qb3 {[%clk 0:00:25]} 32... Bh7 {[%clk 0:01:10.6]} 33. Qxd5
{[%clk 0:00:05.1]} 33... Qc2 {[%clk 0:01:07.5]} 34. Ke1 {[%clk 0:00:04.1]} 34...
Qc1+ {[%clk 0:01:04.4]} 35. Ke2 {[%clk 0:00:05.3]} 35... Bc2 {[%clk 0:01:01.9]}
36. Ne4 {[%clk 0:00:02.9]} 36... Qd1+ {[%clk 0:00:56.1]} 37. Kf2 {[%clk
0:00:04.4]} 37... Bd3 {[%clk 0:00:55.1]} 0-1

[Event "*** Qualifier 1: Titled Tuesday 3|2 Blitz"]
[Site "Chess.com"]
[Date "2017.04.04"]
[Round "4"]
[White "wonderfultime"]
[Black "amaidel"]
[Result "1-0"]
[WhiteElo "2666"]
[BlackElo "2480"]
[TimeControl "180+2"]
[EndTime "13:51:53 PDT"]
[Termination "wonderfultime won by resignation"]

1. d4 {[%clk 0:03:01.9]} 1... d5 {[%clk 0:02:59.7]} 2. c4 {[%clk 0:02:52.8]}
2... c6 {[%clk 0:03:00.5]} 3. Nc3 {[%clk 0:02:54]} 3... Nf6 {[%clk 0:03:01.5]}
4. e3 {[%clk 0:02:54.3]} 4... a6 {[%clk 0:03:01.4]} 5. Nf3 {[%clk 0:02:55.4]}
5... e6 {[%clk 0:02:58.4]} 6. Qc2 {[%clk 0:02:52.8]} 6... Be7 {[%clk 0:02:58.5]}
7. b3 {[%clk 0:02:49.9]} 7... O-O {[%clk 0:02:58.5]} 8. Bb2 {[%clk 0:02:48.3]}
8... c5 {[%clk 0:02:56]} 9. Rd1 {[%clk 0:02:42.5]} 9... cxd4 {[%clk 0:02:54]}
10. Nxd4 {[%clk 0:02:43.4]} 10... Qc7 {[%clk 0:02:52.1]} 11. cxd5 {[%clk
0:02:41.7]} 11... exd5 {[%clk 0:02:47.2]} 12. Be2 {[%clk 0:02:40.4]} 12... Nc6
{[%clk 0:02:47.1]} 13. O-O {[%clk 0:02:40.9]} 13... Nxd4 {[%clk 0:02:40.4]} 14.
Rxd4 {[%clk 0:02:42.8]} 14... Be6 {[%clk 0:02:41]} 15. Bf3 {[%clk 0:02:25.7]}
15... Rac8 {[%clk 0:02:40.9]} 16. Qb1 {[%clk 0:02:18.4]} 16... Rfd8 {[%clk
0:02:37.4]} 17. Rc1 {[%clk 0:02:04.7]} 17... Qb8 {[%clk 0:02:22.9]} 18. Rdd1
{[%clk 0:02:05.4]} 18... Bd6 {[%clk 0:02:14.7]} 19. h3 {[%clk 0:02:06.3]} 19...
Bh2+ {[%clk 0:02:11.1]} 20. Kh1 {[%clk 0:02:05.5]} 20... Be5 {[%clk 0:02:11.9]}
21. Ne2 {[%clk 0:02:06.8]} 21... Ne4 {[%clk 0:02:01.1]} 22. Bxe4 {[%clk
0:01:41]} 22... dxe4 {[%clk 0:02:01.8]} 23. Qa1 {[%clk 0:01:42.4]} 23... Bxb2
{[%clk 0:01:43.4]} 24. Qxb2 {[%clk 0:01:44.3]} 24... Rxc1 {[%clk 0:01:30.8]} 25.
Rxc1 {[%clk 0:01:46.2]} 25... Qd6 {[%clk 0:01:30]} 26. Ng3 {[%clk 0:01:38.7]}
26... Qd5 {[%clk 0:01:05.6]} 27. Kh2 {[%clk 0:01:12.1]} 27... h5 {[%clk
0:01:05.5]} 28. Rc4 {[%clk 0:01:12]} 28... Qd1 {[%clk 0:00:27.7]} 29. Rxe4
{[%clk 0:00:21.2]} 29... Rd2 {[%clk 0:00:27.7]} 30. Qe5 {[%clk 0:00:22.4]} 30...
g6 {[%clk 0:00:20.9]} 31. Qf6 {[%clk 0:00:18.2]} 31... Rxa2 {[%clk 0:00:19.8]}
32. Rd4 {[%clk 0:00:18.8]} 32... Rd2 {[%clk 0:00:15.1]} 33. Qd8+ {[%clk
0:00:19]} 1-0

[Event "*** Qualifier 1: Titled Tuesday 3|2 Blitz"]
[Site "Chess.com"]
[Date "2017.04.04"]
[Round "4"]
[White "Goala"]
[Black "ruvat"]
[Result "1-0"]
[WhiteElo "2252"]
[BlackElo "2237"]
[TimeControl "180+2"]
[EndTime "13:51:54 PDT"]
[Termination "Goala won on time"]

1. d4 {[%clk 0:02:57.3]} 1... d6 {[%clk 0:03:00.3]} 2. c4 {[%clk 0:02:57.8]}
2... e5 {[%clk 0:03:00.2]} 3. Nf3 {[%clk 0:02:53.8]} 3... e4 {[%clk 0:03:00.1]}
4. Ng5 {[%clk 0:02:52.1]} 4... Nf6 {[%clk 0:02:59.2]} 5. Nc3 {[%clk 0:02:52.8]}
5... Qe7 {[%clk 0:02:59.9]} 6. g3 {[%clk 0:02:49.8]} 6... h6 {[%clk 0:02:59.6]}
7. Nh3 {[%clk 0:02:50.3]} 7... g6 {[%clk 0:03:00.7]} 8. Bg2 {[%clk 0:02:50.5]}
8... Bg7 {[%clk 0:03:01.7]} 9. Nf4 {[%clk 0:02:49]} 9... c6 {[%clk 0:03:01.7]}
10. h4 {[%clk 0:02:44.2]} 10... O-O {[%clk 0:02:59]} 11. b3 {[%clk 0:02:16.7]}
11... Na6 {[%clk 0:02:55]} 12. Bb2 {[%clk 0:02:17.5]} 12... Bf5 {[%clk
0:02:51.4]} 13. a3 {[%clk 0:02:15.5]} 13... Nc7 {[%clk 0:02:49.7]} 14. e3 {[%clk
0:02:11]} 14... a6 {[%clk 0:02:35.5]} 15. d5 {[%clk 0:02:06.3]} 15... c5 {[%clk
0:02:33.9]} 16. Bh3 {[%clk 0:01:52.2]} 16... Bxh3 {[%clk 0:02:26.5]} 17. Rxh3
{[%clk 0:01:54.1]} 17... b5 {[%clk 0:02:23.6]} 18. g4 {[%clk 0:01:55.3]} 18...
bxc4 {[%clk 0:02:22.6]} 19. bxc4 {[%clk 0:01:55.7]} 19... Rab8 {[%clk 0:02:22]}
20. Rb1 {[%clk 0:01:56.2]} 20... Nxg4 {[%clk 0:02:12.6]} 21. Qc2 {[%clk
0:01:49.4]} 21... Ne5 {[%clk 0:01:38.2]} 22. Nxe4 {[%clk 0:01:46.4]} 22... Nf3+
{[%clk 0:01:11.8]} 23. Rxf3 {[%clk 0:01:45.1]} 23... Bxb2 {[%clk 0:01:05.9]} 24.
Rxb2 {[%clk 0:01:34.3]} 24... Rxb2 {[%clk 0:01:04.7]} 25. Qxb2 {[%clk
0:01:36.2]} 25... Qxe4 {[%clk 0:01:05.6]} 26. Rg3 {[%clk 0:01:36.2]} 26... Re8
{[%clk 0:00:54.7]} 27. Nxg6 {[%clk 0:01:24.9]} 27... fxg6 {[%clk 0:00:45.5]} 28.
Qf6 {[%clk 0:01:25.6]} 28... Qb1+ {[%clk 0:00:23.1]} 29. Ke2 {[%clk 0:01:19.8]}
29... Qc2+ {[%clk 0:00:23.8]} 30. Ke1 {[%clk 0:01:10.1]} 30... Qc1+ {[%clk
0:00:23.2]} 31. Ke2 {[%clk 0:01:11.4]} 31... Qxc4+ {[%clk 0:00:20.7]} 32. Ke1
{[%clk 0:01:12.7]} 32... Qc1+ {[%clk 0:00:20.7]} 33. Ke2 {[%clk 0:01:13.7]}
33... Qc2+ {[%clk 0:00:19.9]} 34. Ke1 {[%clk 0:01:14]} 34... Qc1+ {[%clk
0:00:14.4]} 35. Ke2 {[%clk 0:01:15.4]} 35... Qc2+ {[%clk 0:00:15.6]} 36. Kf1
{[%clk 0:01:17]} 36... Qd3+ {[%clk 0:00:10.4]} 37. Kg1 {[%clk 0:01:16.5]} 37...
g5 {[%clk 0:00:06.7]} 38. hxg5 {[%clk 0:01:17.3]} 38... h5 {[%clk 0:00:07.5]}
39. g6 {[%clk 0:01:11.2]} 39... Qxd5 {[%clk 0:00:08.5]} 40. Rg5 {[%clk
0:01:04.4]} 40... Qe6 {[%clk 0:00:08.4]} 41. Qf3 {[%clk 0:00:57.8]} 1-0

[Event "*** Qualifier 1: Titled Tuesday 3|2 Blitz"]
[Site "Chess.com"]
[Date "2017.04.04"]
[Round "4"]
[White "GMHess"]
[Black "Sanan_Sjugirov"]
[Result "0-1"]
[WhiteElo "2601"]
[BlackElo "2704"]
[TimeControl "180+2"]
[EndTime "13:52:05 PDT"]
[Termination "Sanan_Sjugirov won by resignation"]

1. d4 {[%clk 0:03:02]} 1... Nf6 {[%clk 0:03:00.6]} 2. c4 {[%clk 0:03:03.1]} 2...
e6 {[%clk 0:03:01.4]} 3. Nc3 {[%clk 0:03:04.1]} 3... Bb4 {[%clk 0:03:01.7]} 4.
Qc2 {[%clk 0:03:05.4]} 4... d5 {[%clk 0:02:48.4]} 5. a3 {[%clk 0:03:00.3]} 5...
Bxc3+ {[%clk 0:02:49.2]} 6. Qxc3 {[%clk 0:03:02.2]} 6... O-O {[%clk 0:02:49.8]}
7. Bg5 {[%clk 0:02:45.5]} 7... c5 {[%clk 0:02:49.6]} 8. cxd5 {[%clk 0:02:10.5]}
8... cxd4 {[%clk 0:02:44.3]} 9. Qxd4 {[%clk 0:02:06.1]} 9... Nc6 {[%clk
0:02:45.3]} 10. Qc3 {[%clk 0:01:56.6]} 10... exd5 {[%clk 0:02:13.9]} 11. Bxf6
{[%clk 0:01:54.7]} 11... gxf6 {[%clk 0:02:14.5]} 12. Rd1 {[%clk 0:01:46.1]}
12... d4 {[%clk 0:02:12.8]} 13. Qc5 {[%clk 0:01:31.2]} 13... Be6 {[%clk
0:01:37.4]} 14. Nf3 {[%clk 0:00:47.4]} 14... Rc8 {[%clk 0:01:38]} 15. Nxd4
{[%clk 0:00:23.6]} 15... Nxd4 {[%clk 0:01:23]} 16. Qxd4 {[%clk 0:00:25.5]} 16...
Qa5+ {[%clk 0:01:16.8]} 17. Qd2 {[%clk 0:00:11.1]} 17... Qa4 {[%clk 0:01:08.6]}
18. Qd4 {[%clk 0:00:08.2]} 18... Qa5+ {[%clk 0:00:55]} 19. Qd2 {[%clk
0:00:08.8]} 19... Qf5 {[%clk 0:00:47.2]} 20. g4 {[%clk 0:00:07]} 20... Qxg4
{[%clk 0:00:36.4]} 21. Qe3 {[%clk 0:00:07.1]} 21... Kh8 {[%clk 0:00:32.1]} 22.
h3 {[%clk 0:00:04]} 22... Qg6 {[%clk 0:00:30.1]} 23. Qd3 {[%clk 0:00:02.9]}
23... Bf5 {[%clk 0:00:30.4]} 24. Qg3 {[%clk 0:00:04.1]} 24... Qh6 {[%clk
0:00:26.5]} 25. Qe3 {[%clk 0:00:03.9]} 25... Qg7 {[%clk 0:00:21.8]} 26. Qg3
{[%clk 0:00:04.1]} 26... Bg6 {[%clk 0:00:21.4]} 27. h4 {[%clk 0:00:05.4]} 27...
h5 {[%clk 0:00:21.6]} 28. Bh3 {[%clk 0:00:05.8]} 28... Rc2 {[%clk 0:00:19.1]}
29. O-O {[%clk 0:00:03.8]} 29... Rxe2 {[%clk 0:00:19]} 30. b4 {[%clk 0:00:03.6]}
30... Rg8 {[%clk 0:00:18.5]} 31. Rd7 {[%clk 0:00:03.2]} 31... Qh6 {[%clk
0:00:17.9]} 32. Kh2 {[%clk 0:00:02.4]} 32... Be4 {[%clk 0:00:17.7]} 33. Qxg8+
{[%clk 0:00:02.5]} 33... Kxg8 {[%clk 0:00:18.4]} 34. Rd8+ {[%clk 0:00:03.5]}
34... Kg7 {[%clk 0:00:19.3]} 35. Rg1+ {[%clk 0:00:04.5]} 35... Bg6 {[%clk
0:00:20.7]} 36. Rg2 {[%clk 0:00:04.3]} 0-1

[Event "*** Qualifier 1: Titled Tuesday 3|2 Blitz"]
[Site "Chess.com"]
[Date "2017.04.04"]
[Round "4"]
[White "saraswathii"]
[Black "capatl"]
[Result "1-0"]
[WhiteElo "2180"]
[BlackElo "2339"]
[TimeControl "180+2"]
[EndTime "13:52:12 PDT"]
[Termination "saraswathii won on time"]

1. e4 {[%clk 0:03:02]} 1... c5 {[%clk 0:01:29.8]} 2. d3 {[%clk 0:02:21.8]} 2...
e6 {[%clk 0:01:27]} 3. Nf3 {[%clk 0:02:20.6]} 3... Nc6 {[%clk 0:01:26.9]} 4. g3
{[%clk 0:02:21.1]} 4... d6 {[%clk 0:01:26.2]} 5. Bg2 {[%clk 0:02:22.2]} 5... Nf6
{[%clk 0:01:26.1]} 6. O-O {[%clk 0:02:23.2]} 6... g6 {[%clk 0:01:26.7]} 7. c3
{[%clk 0:02:24.1]} 7... Bg7 {[%clk 0:01:27.4]} 8. Qe2 {[%clk 0:02:25.1]} 8...
O-O {[%clk 0:01:26.4]} 9. d4 {[%clk 0:02:26.1]} 9... cxd4 {[%clk 0:01:25.9]} 10.
cxd4 {[%clk 0:02:28]} 10... d5 {[%clk 0:01:25.5]} 11. e5 {[%clk 0:02:22.5]}
11... Ne4 {[%clk 0:01:24.9]} 12. Nbd2 {[%clk 0:02:19.5]} 12... Nxd2 {[%clk
0:01:24.6]} 13. Bxd2 {[%clk 0:02:21.4]} 13... b6 {[%clk 0:01:23.4]} 14. Rac1
{[%clk 0:02:20.6]} 14... Qd7 {[%clk 0:01:20.9]} 15. h4 {[%clk 0:02:20.1]} 15...
Bb7 {[%clk 0:01:18.9]} 16. h5 {[%clk 0:02:20.2]} 16... Rfc8 {[%clk 0:01:17.6]}
17. hxg6 {[%clk 0:02:19.1]} 17... hxg6 {[%clk 0:01:17.1]} 18. Be3 {[%clk
0:02:15.9]} 18... Ne7 {[%clk 0:01:16.5]} 19. Nh4 {[%clk 0:02:15.5]} 19... Qa4
{[%clk 0:01:13.1]} 20. b3 {[%clk 0:02:15.3]} 20... Ba6 {[%clk 0:01:09.5]} 21.
Qd2 {[%clk 0:02:09.3]} 21... Qd7 {[%clk 0:01:09.3]} 22. Rfe1 {[%clk 0:02:09.4]}
22... Rxc1 {[%clk 0:01:07.5]} 23. Rxc1 {[%clk 0:02:09.2]} 23... Rc8 {[%clk
0:01:08.1]} 24. Bh6 {[%clk 0:02:01.7]} 24... Rxc1+ {[%clk 0:01:06.4]} 25. Qxc1
{[%clk 0:02:03.6]} 25... Bh8 {[%clk 0:00:58.7]} 26. Qg5 {[%clk 0:01:59.5]} 26...
Bd3 {[%clk 0:00:44.3]} 27. g4 {[%clk 0:01:43.4]} 27... Nc6 {[%clk 0:00:44.5]}
28. Qe3 {[%clk 0:01:34.5]} 28... Bb1 {[%clk 0:00:44]} 29. Bg5 {[%clk 0:01:32.7]}
29... Bxa2 {[%clk 0:00:38.8]} 30. Bf6 {[%clk 0:01:28.9]} 30... Bxf6 {[%clk
0:00:37.4]} 31. exf6 {[%clk 0:01:30.8]} 31... Qd8 {[%clk 0:00:38.5]} 32. g5
{[%clk 0:01:22.2]} 32... Qd6 {[%clk 0:00:27.7]} 33. Bh3 {[%clk 0:01:18.4]} 33...
Bb1 {[%clk 0:00:26.9]} 34. Bf1 {[%clk 0:01:10.7]} 34... Na5 {[%clk 0:00:21.7]}
35. Qc1 {[%clk 0:01:07.7]} 35... Bf5 {[%clk 0:00:19.5]} 36. Nxf5 {[%clk
0:01:07.3]} 36... gxf5 {[%clk 0:00:19.8]} 37. Qc8+ {[%clk 0:01:08]} 37... Kh7
{[%clk 0:00:18.9]} 38. Qe8 {[%clk 0:01:05.4]} 38... Kg6 {[%clk 0:00:08.4]} 39.
Qg8+ {[%clk 0:01:06]} 39... Kh5 {[%clk 0:00:08.5]} 40. Be2+ {[%clk 0:01:05.9]}
40... Kh4 {[%clk 0:00:09.6]} 41. Qh7+ {[%clk 0:01:03.4]} 41... Kxg5 {[%clk
0:00:10.3]} 42. Qg7+ {[%clk 0:01:04.4]} 42... Kf4 {[%clk 0:00:08.1]} 43. Qg3+
{[%clk 0:01:05.2]} 1-0

[Event "*** Qualifier 1: Titled Tuesday 3|2 Blitz"]
[Site "Chess.com"]
[Date "2017.04.04"]
[Round "4"]
[White "SmoothAsAHedgehog"]
[Black "RitvarsReimanis"]
[Result "1-0"]
[WhiteElo "2530"]
[BlackElo "2415"]
[TimeControl "180+2"]
[EndTime "13:52:13 PDT"]
[Termination "SmoothAsAHedgehog won by resignation"]

1. Nf3 {[%clk 0:03:00.5]} 1... Nf6 {[%clk 0:02:58.2]} 2. c4 {[%clk 0:03:01.6]}
2... e6 {[%clk 0:03:00.1]} 3. g3 {[%clk 0:03:02.7]} 3... d5 {[%clk 0:03:02]} 4.
Bg2 {[%clk 0:03:04.1]} 4... Be7 {[%clk 0:03:03.6]} 5. O-O {[%clk 0:03:05]} 5...
O-O {[%clk 0:03:05.3]} 6. b3 {[%clk 0:03:06.6]} 6... c5 {[%clk 0:03:05.9]} 7.
Bb2 {[%clk 0:03:06.3]} 7... Nc6 {[%clk 0:03:07.4]} 8. e3 {[%clk 0:03:05.2]} 8...
b6 {[%clk 0:03:07.6]} 9. Nc3 {[%clk 0:03:05.1]} 9... dxc4 {[%clk 0:03:07.9]} 10.
bxc4 {[%clk 0:03:05.6]} 10... Bb7 {[%clk 0:03:08.3]} 11. d3 {[%clk 0:03:06.4]}
11... Nb4 {[%clk 0:03:04.4]} 12. Ne1 {[%clk 0:02:54.1]} 12... Bxg2 {[%clk
0:03:03.1]} 13. Kxg2 {[%clk 0:02:56]} 13... Qd7 {[%clk 0:02:57.2]} 14. a3 {[%clk
0:02:56]} 14... Qb7+ {[%clk 0:02:55.3]} 15. Qf3 {[%clk 0:02:55.8]} 15... Qxf3+
{[%clk 0:02:56.1]} 16. Kxf3 {[%clk 0:02:57.7]} 16... Nc6 {[%clk 0:02:56.4]} 17.
Ke2 {[%clk 0:02:59.3]} 17... Rfd8 {[%clk 0:02:50.7]} 18. Rd1 {[%clk 0:03:00.9]}
18... Rd7 {[%clk 0:02:45.9]} 19. f4 {[%clk 0:03:01.9]} 19... Rad8 {[%clk
0:02:46.2]} 20. h3 {[%clk 0:03:03.4]} 20... Nh5 {[%clk 0:02:44.4]} 21. Rg1
{[%clk 0:03:03.5]} 21... Nf6 {[%clk 0:02:42.7]} 22. g4 {[%clk 0:03:04.6]} 22...
Ne8 {[%clk 0:02:42.4]} 23. g5 {[%clk 0:03:05.5]} 23... Nd6 {[%clk 0:02:43]} 24.
h4 {[%clk 0:03:06.4]} 24... Rb7 {[%clk 0:02:32.8]} 25. a4 {[%clk 0:02:58.4]}
25... a6 {[%clk 0:02:26.9]} 26. h5 {[%clk 0:02:58.4]} 26... b5 {[%clk
0:02:27.3]} 27. axb5 {[%clk 0:03:00.1]} 27... axb5 {[%clk 0:02:29.2]} 28. cxb5
{[%clk 0:03:01.7]} 28... Nxb5 {[%clk 0:02:31.1]} 29. Nxb5 {[%clk 0:02:55.3]}
29... Rxb5 {[%clk 0:02:33]} 30. Bc3 {[%clk 0:02:56.9]} 30... Rb3 {[%clk
0:02:30.9]} 31. Rc1 {[%clk 0:02:58.4]} 31... Kf8 {[%clk 0:02:09.5]} 32. Rc2
{[%clk 0:02:54.3]} 32... Ra8 {[%clk 0:02:10]} 33. Nf3 {[%clk 0:02:53.9]} 33...
Raa3 {[%clk 0:02:09]} 34. Rgc1 {[%clk 0:02:55.2]} 34... g6 {[%clk 0:02:07.1]}
35. h6 {[%clk 0:02:54.6]} 35... Ke8 {[%clk 0:02:06.1]} 36. Nd2 {[%clk
0:02:55.9]} 36... Rb8 {[%clk 0:02:01.5]} 37. Nc4 {[%clk 0:02:56.5]} 37... Ra4
{[%clk 0:02:01.5]} 38. Nd2 {[%clk 0:02:56.7]} 38... Kd7 {[%clk 0:01:53.9]} 39.
Ne4 {[%clk 0:02:56.6]} 39... c4 {[%clk 0:01:45]} 40. d4 {[%clk 0:02:42.6]} 40...
Rb3 {[%clk 0:01:26.2]} 41. Bd2 {[%clk 0:02:25.9]} 41... Nb4 {[%clk 0:00:44.2]}
42. Bxb4 {[%clk 0:02:25]} 42... Rbxb4 {[%clk 0:00:43.2]} 43. Nd2 {[%clk
0:02:25.9]} 43... f6 {[%clk 0:00:26.7]} 44. gxf6 {[%clk 0:02:24.2]} 44... Bxf6
{[%clk 0:00:28.6]} 45. Nxc4 {[%clk 0:02:24.6]} 45... g5 {[%clk 0:00:28.4]} 46.
fxg5 {[%clk 0:02:20.9]} 46... Bxg5 {[%clk 0:00:30.3]} 47. Ne5+ {[%clk
0:02:22.3]} 47... Ke7 {[%clk 0:00:12.3]} 48. Rc7+ {[%clk 0:02:21.5]} 48... Ke8
{[%clk 0:00:12]} 49. Rg1 {[%clk 0:01:38.8]} 49... Bxh6 {[%clk 0:00:11.5]} 50.
Rg8+ {[%clk 0:01:35.7]} 50... Bf8 {[%clk 0:00:12.8]} 51. Rc8+ {[%clk 0:01:36.8]}
51... Ke7 {[%clk 0:00:14.4]} 52. Rgxf8 {[%clk 0:01:25.3]} 52... Rb2+ {[%clk
0:00:14.2]} 53. Kf3 {[%clk 0:01:26.7]} 1-0

[Event "*** Qualifier 1: Titled Tuesday 3|2 Blitz"]
[Site "Chess.com"]
[Date "2017.04.04"]
[Round "4"]
[White "rst2003"]
[Black "justantan"]
[Result "0-1"]
[WhiteElo "2090"]
[BlackElo "2089"]
[TimeControl "180+2"]
[EndTime "13:52:15 PDT"]
[Termination "justantan won by resignation"]

1. e4 {[%clk 0:03:02]} 1... e5 {[%clk 0:02:29.4]} 2. Nf3 {[%clk 0:03:01.5]} 2...
Nc6 {[%clk 0:02:29.4]} 3. Bc4 {[%clk 0:03:02]} 3... Bc5 {[%clk 0:02:28.1]} 4. d3
{[%clk 0:03:02.1]} 4... Nf6 {[%clk 0:02:27.7]} 5. Nbd2 {[%clk 0:03:02.8]} 5...
d6 {[%clk 0:02:27]} 6. c3 {[%clk 0:03:03.4]} 6... a6 {[%clk 0:02:28.1]} 7. Bb3
{[%clk 0:03:04.4]} 7... O-O {[%clk 0:02:27.1]} 8. h3 {[%clk 0:03:05.5]} 8... Re8
{[%clk 0:02:26.1]} 9. Nf1 {[%clk 0:03:06.3]} 9... Be6 {[%clk 0:02:27.7]} 10. Bc2
{[%clk 0:03:06.5]} 10... d5 {[%clk 0:02:28.7]} 11. Qe2 {[%clk 0:03:07.5]} 11...
dxe4 {[%clk 0:02:29.2]} 12. dxe4 {[%clk 0:03:08.4]} 12... b5 {[%clk 0:02:24.6]}
13. Nh4 {[%clk 0:02:52.5]} 13... Bc4 {[%clk 0:02:14.8]} 14. Qf3 {[%clk
0:02:52.4]} 14... h6 {[%clk 0:01:38.5]} 15. Nf5 {[%clk 0:02:51.5]} 15... Bf8
{[%clk 0:01:37.6]} 16. g4 {[%clk 0:02:48.6]} 16... Nh7 {[%clk 0:01:36.4]} 17. h4
{[%clk 0:02:47.1]} 17... Ne7 {[%clk 0:01:09.5]} 18. N1g3 {[%clk 0:02:46.2]}
18... Nxf5 {[%clk 0:01:09.2]} 19. Nxf5 {[%clk 0:02:45.5]} 19... f6 {[%clk
0:00:47.8]} 20. Bd2 {[%clk 0:02:38.7]} 20... b4 {[%clk 0:00:46.5]} 21. cxb4
{[%clk 0:02:32.5]} 21... Rb8 {[%clk 0:00:46.7]} 22. a3 {[%clk 0:02:31.2]} 22...
Be6 {[%clk 0:00:39.3]} 23. Rd1 {[%clk 0:02:25.7]} 23... c5 {[%clk 0:00:34.8]}
24. bxc5 {[%clk 0:02:01.8]} 24... Rxb2 {[%clk 0:00:28.8]} 25. Bc3 {[%clk
0:01:55.9]} 25... Rxc2 {[%clk 0:00:26]} 26. Rxd8 {[%clk 0:01:55.3]} 26... Rxd8
{[%clk 0:00:27.9]} 27. O-O {[%clk 0:01:54.2]} 27... Bc4 {[%clk 0:00:27.3]} 28.
Re1 {[%clk 0:01:53.8]} 28... Rd3 {[%clk 0:00:27.4]} 29. Re3 {[%clk 0:01:53.2]}
29... Rcxc3 {[%clk 0:00:28.7]} 30. c6 {[%clk 0:01:50.7]} 30... Rxe3 {[%clk
0:00:28.5]} 31. Nxe3 {[%clk 0:01:51.5]} 31... Be6 {[%clk 0:00:28.5]} 32. Qd1
{[%clk 0:01:42.4]} 32... Rxc6 {[%clk 0:00:27.5]} 33. Qd8 {[%clk 0:01:42.9]}
33... Rc8 {[%clk 0:00:23]} 34. Qb6 {[%clk 0:01:42.8]} 34... Kf7 {[%clk
0:00:11.7]} 35. Qxa6 {[%clk 0:01:40.9]} 35... Be7 {[%clk 0:00:11.9]} 36. a4
{[%clk 0:01:40.6]} 36... Nf8 {[%clk 0:00:13.2]} 37. a5 {[%clk 0:01:41.4]} 37...
Nd7 {[%clk 0:00:14.4]} 38. Nf5 {[%clk 0:01:40.8]} 38... Rc1+ {[%clk 0:00:14.3]}
39. Kg2 {[%clk 0:01:40.6]} 39... Rc7 {[%clk 0:00:11.3]} 40. Qb5 {[%clk
0:01:38.6]} 40... Ra7 {[%clk 0:00:11.8]} 41. a6 {[%clk 0:01:38.8]} 41... Bxf5
{[%clk 0:00:11.5]} 42. gxf5 {[%clk 0:01:38.9]} 42... Nc5 {[%clk 0:00:13.1]} 43.
Qc4+ {[%clk 0:01:37.7]} 43... Kf8 {[%clk 0:00:14.4]} 44. Qd5 {[%clk 0:01:27.1]}
44... Rxa6 {[%clk 0:00:14.7]} 45. f3 {[%clk 0:01:25.8]} 45... Rb6 {[%clk
0:00:15.4]} 46. Kg3 {[%clk 0:01:26.9]} 46... Rb8 {[%clk 0:00:16.6]} 47. Qc4
{[%clk 0:01:25.6]} 47... Rd8 {[%clk 0:00:18.5]} 48. Kg4 {[%clk 0:01:24.9]} 48...
Nd3 {[%clk 0:00:20.1]} 49. Kh5 {[%clk 0:01:23.3]} 49... Nf4+ {[%clk 0:00:22]}
50. Kg4 {[%clk 0:01:24.4]} 50... h5+ {[%clk 0:00:23.4]} 51. Kg3 {[%clk
0:01:21.8]} 51... Rd2 {[%clk 0:00:24.5]} 52. Qc8+ {[%clk 0:01:22.3]} 52... Bd8
{[%clk 0:00:25.8]} 53. Qc5+ {[%clk 0:01:23]} 53... Kg8 {[%clk 0:00:27.2]} 54.
Qc4+ {[%clk 0:01:17.4]} 54... Kh7 {[%clk 0:00:28.5]} 55. Qf1 {[%clk 0:01:17.8]}
55... Bb6 {[%clk 0:00:28.8]} 0-1